Cogmind - Beta 15 @@@ ROGUE MODE // 2025.09.25 @ 03:09:30 Player: kiul Result: Destroyed by G-47 Trooper with Particle Gun Performance ------------- Evolutions (2) 1000 Regions Visited (4) 800 Robots Destroyed (56) 280 Value Destroyed (1612) 1612 Prototype IDs (6) 120 Alien Tech Used (0) 0 Bonus (0) 0 TOTAL SCORE: 3812 Bonus ------- None Cogmind --------- Core Integrity 0/550 Matter 300/300 Energy 100/100 System Corruption 9% Temperature Cool (9) Movement Walking (120) Location -8/Materials Parts ------- > --- POWER (2) -------- (None) > --- PROPULSION (3) --- Aluminum Leg Aluminum Leg > --- UTILITY (4) ------ Medium Storage Unit Hacking Suite > --- WEAPON (2) ------- (None) > --- INVENTORY (10) --- Hacking Suite Advanced Beam Cannon Peak State ------------ > --- POWER ------------ Light Ion Engine Light Ion Engine > --- PROPULSION ------- Titanium Leg Titanium Leg Titanium Leg > --- UTILITY ---------- Medium Storage Unit Light Armor Plating Shield Generator Hacking Suite > --- WEAPON ----------- Advanced Beam Rifle Shock Bomb Launcher > --- INVENTORY -------- Aluminum Leg Aluminum Leg Hacking Suite EM Pulse Gun Small Laser Advanced Beam Cannon Shock Bomb Launcher Heavy Mace [Rating: 26] Favorites ----------- Power Light Ion Engine Engine Light Ion Engine Power Core Light Nuclear Core Propulsion Aluminum Leg Leg Aluminum Leg Utility Hacking Suite Device Shield Generator Storage Medium Storage Unit Processor Targeting Computer Hackware Hacking Suite Protection Propulsion Shielding Weapon Light Assault Rifle Energy Gun Advanced Beam Rifle Energy Cannon Advanced Beam Cannon Ballistic Gun Light Assault Rifle Ballistic Cannon Light Cannon Launcher Shock Bomb Launcher Impact Weapon Heavy Mace Build | -11 -10 -10 -9 -8 ------- Run | Yrd Mat Min Mat Mat Slots Evolved 4 | . . . 2 2 Power 1 | . . . . 1 Propulsion 1 | . . . 1 . Utility 2 | . . . 1 1 Weapon . | . . . . . Parts Attached 44 | 7 6 . 15 16 Power 11 | 1 1 . 3 6 Engine 7 | 1 1 . 3 2 Core 4 | . . . . 4 Reactor . | . . . . . Propulsion 12 | 2 1 . 5 4 Treads . | . . . . . Leg 12 | 2 1 . 5 4 Wheel . | . . . . . Hover . | . . . . . Flight . | . . . . . Utility 7 | 1 2 . 3 1 Device 1 | . . . 1 . Storage 2 | 1 . . 1 . Processor 1 | . 1 . . . Hackware 1 | . . . 1 . Protection 2 | . 1 . . 1 Artifact . | . . . . . Weapon 14 | 3 2 . 4 5 Energy Gun 4 | 1 . . . 3 Energy Cannon 2 | . . . 2 . Ballistic Gun 4 | 2 1 . 1 . Ballistic Cannon 1 | . 1 . . . Launcher 2 | . . . 1 1 Special Weapon . | . . . . . Impact Weapon 1 | . . . . 1 Slashing Weapon . | . . . . . Piercing Weapon . | . . . . . Special Melee Weapon . | . . . . . Unidentified Prototypes 2 | . . . 1 1 Corrupted Parts 1 | . . . . 1 System Corruption 9 | . . . . 9 Parts Lost 30 | . 2 . 6 22 Power 9 | . 1 . 1 7 Propulsion 9 | . . . 2 7 Utility 4 | . 1 . 1 2 Weapon 8 | . . . 2 6 Highest Loss Streak 8 | . 1 . 3 8 To Critical Strikes . | . . . . . Average Backups 5 | . 4 7 7 4 Power . | . . 1 1 . Propulsion . | . . 1 . . Utility 1 | . 1 2 1 1 Weapon 2 | . 2 3 3 2 Tool/Special . | . . . . . Unused Backups 2 | . . . . 2 Power . | . . . . . Propulsion . | . . . . . Utility 1 | . . . . 1 Weapon 1 | . . . . 1 Tool/Special . | . . . . . Average Slot Usage (%) 86 | . 94 100 98 69 Engine 8 | . 11 14 11 4 Core 1 | . . . . 4 Leg 27 | . 28 28 31 23 Device 2 | . . . 5 1 Storage 11 | . 14 14 11 9 Processor 2 | . 9 . . . Hackware 7 | . . . 10 9 Protection 3 | . 1 14 5 1 Energy Gun 3 | . . . 3 6 Ballistic Gun 9 | . 23 14 8 . Ballistic Cannon 3 | . 4 14 4 . Launcher 2 | . . . 3 3 Impact Weapon 2 | . . . . 6 Peak Build Rating 26 | 6 8 8 22 26 Average Rating 14 | 4 7 8 15 19 On Entrance 8 | . 6 8 8 21 Naked Turns . | . . . . . Heaviest Build 29 | 11 15 15 26 29 Greatest Support 51 | 20 20 20 51 51 Greatest Overweight (x) 4 | . . . 2 4 Average Overweight (x) . | . . . . . Largest Inventory Capacity 10 | 8 8 8 10 10 Average Capacity 9 | 7 8 8 9 10 Most Carried 10 | 1 7 7 10 8 Average Carried 5 | . 4 7 7 4 Final Capacity 10 | 8 8 8 10 10 Final Carried 9 | 1 7 7 9 2 Class Distribution -------------------- 76% | Mutant 23% | Scavenger-Mutant Dominant Class ---------------- Mutant | -10/Materials Mutant | -10/Mines Mutant | -9/Materials Scavenger-Mutant | -8/Materials Resources | -11 -10 -10 -9 -8 ----------- Run | Yrd Mat Min Mat Mat Matter Collected 1058 | 218 283 . 343 214 Remotely . | . . . . . Salvage Created 2018 | . 257 . 589 1172 Parts 97 | . 22 . 39 36 Haulers Intercepted 1 | . . . 1 . Recyclers Shooed 3 | . 3 . . . Parts Field Recycled . | . . . . . Retrieved Matter . | . . . . . Parts Self-Destructed . | . . . . . Prevented . | . . . . . Kills | -11 -10 -10 -9 -8 ------- Run | Yrd Mat Min Mat Mat Combat Hostiles Destroyed 39 | . 7 . 14 18 Melee 6 | . . . . 6 Guns 18 | . 6 . 8 4 Cannons 6 | . 1 . 5 . AOE 2 | . . . 1 1 Classes Destroyed 13 | . 5 . 4 4 Worker 3 | . . . 2 1 Builder 2 | . . . 1 1 Tunneler 4 | . 2 . . 2 Hauler 1 | . . . 1 . Recycler 3 | . . . . 3 Operator 2 | . 2 . . . Watcher 2 | . 1 . . 1 Swarmer 7 | . 3 . 4 . Grunt 21 | . 4 . 7 10 Duelist 1 | . . . . 1 Sentry 6 | . . . 3 3 Specialist 2 | . . . . 2 Hunter 2 | . . . . 2 Best Kill Streak 6 | . 3 . 4 6 Combat Bots Only 6 | . 3 . 4 6 Max Kills in Single Turn 3 | . 1 . 2 3 Gunslinging . | . . . . . Exploded 1 | . . . 1 1 Melee 1 | . . . . 1 Uniques/NPCs Destroyed . | . . . . . Combat | -11 -10 -10 -9 -8 -------- Run | Yrd Mat Min Mat Mat Hostile Shots Fired 326 | . 54 . 91 181 Missed 85 | . 19 . 25 41 Hits 241 | . 35 . 66 140 Melee 3 | . . . . 3 Projectile 238 | . 35 . 66 137 Critical Strikes 4 | . . . . 4 Damage Taken 3416 | . 337 . 730 2349 Core 658 | . 42 . 59 557 Absorbed by Shields 120 | . . . 112 8 Redirected to Shielding 50 | . . . 50 . Core Remaining (%) 89 | 100 . 83 85 . Volleys Fired 141 | . 48 . 58 35 Largest 2 | . 2 . 2 2 Hottest 101 | . 50 . 76 101 Shots Fired 230 | . 96 . 81 53 Gun 182 | . 76 . 61 45 Cannon 37 | . 20 . 17 . Launcher 11 | . . . 3 8 Special . | . . . . . Kinetic 160 | . 96 . 64 . Thermal 51 | . . . 14 37 Explosive . | . . . . . Electromagnetic 19 | . . . 3 16 Robot Hit Streak 11 | . 8 . 11 5 Robot Miss Streak 8 | . 3 . 8 4 Penetration Max . | . . . . . Secondary Targets . | . . . . . Shots Hit Robots 184 | . 64 . 52 68 Core Hits 75 | . 21 . 32 22 Critical Kills 4 | . . . 1 3 Critical Parts Destroyed 7 | . . . 1 6 Critical Strikes 13 | . . . 2 11 Burn 1 | . . . . 1 Destroy 2 | . . . 2 . Smash 10 | . . . . 10 Melee Attacks 41 | . . . . 41 Impact 41 | . . . . 41 Slashing . | . . . . . Piercing . | . . . . . Sneak Attacks 3 | . . . . 3 Combat Hostiles . | . . . . . Follow-up Attacks . | . . . . . Damage Inflicted 4174 | . 814 . 759 2601 Guns 1360 | . 530 . 342 488 Cannons 519 | . 284 . 235 . Explosions 711 | . . . 180 531 Melee 1567 | . . . . 1567 Ramming 17 | . . . 2 15 Kinetic 1269 | . 814 . 455 . Thermal 647 | . . . 122 525 Explosive . | . . . . . Electromagnetic 674 | . . . 180 494 Impact 1567 | . . . . 1567 Slashing . | . . . . . Piercing . | . . . . . Highest Corruption 9 | . . . 5 9 Average Corruption 6 | . . . 5 9 Corruption Purged . | . . . . . Corruption Blocked . | . . . . . Effects 12 | . . . 7 5 Message Errors 2 | . . . 1 1 Matter Fused 5 | . . . 4 1 Energy Discharges 1 | . . . . 1 Parts Rejected 1 | . . . . 1 Misfires 1 | . . . . 1 Alerts 1 | . . . 1 . Weapon Failures 1 | . . . 1 . Overload Shots . | . . . . . Overflow Damage 425 | . 5 . . 420 Projectiles 25 | . 5 . . 20 Explosions 10 | . . . . 10 Melee 390 | . . . . 390 Knockbacks 12 | . 5 . 3 4 Impact 4 | . . . . 4 Kinetic 6 | . 4 . 2 . Secondary 2 | . 1 . 1 . Self-Inflicted Damage 106 | . . . 56 50 Shots 6 | . . . 3 3 Rammed . | . . . . . Targets Rammed 8 | . . . 1 7 Kicked 8 | . . . 1 7 Crushed . | . . . . . Highest Temperature 241 | . 34 . 21 241 Average Temperature 50 | . 14 . 5 91 Received Heat Transfer 1131 | . 126 . 264 741 Siege Activations . | . . . . . Martial Activations . | . . . . . Shielding Activations . | . . . . . Robots Disrupted . | . . . . . Combat Hostiles . | . . . . . Robots Corrupted 10 | . . . . 10 Combat Hostiles 7 | . . . . 7 Parts Fried 18 | . . . . 18 Impact Corruptions 18 | . . . . 18 Robots Melted . | . . . . . Combat Hostiles . | . . . . . Parts Melted 3 | . . . . 3 Heat Transferred 1292 | . . . 275 1017 Parts Sabotaged . | . . . . . Parts Stolen . | . . . . . Parts Stripped . | . . . . . Power Chain Reactions 2 | . . . 1 1 Alert | -11 -10 -10 -9 -8 ------- Run | Yrd Mat Min Mat Mat Maximum Alert Level . | . . . . . Low Security (%) 100 | 100 100 100 100 100 Level 1 . | . . . . . Level 2 . | . . . . . Level 3 . | . . . . . Level 4 . | . . . . . Level 5 . | . . . . . High Security . | . . . . . Max Security . | . . . . . Peak Influence 168 | . 105 10 140 168 Initial 42 | . . 10 . 42 Average 68 | . 50 6 79 82 Influence Increases 1208 | . 234 . 393 581 Destroy 0b10 Robot/C 780 | . 140 . 280 360 Destroy 0b10 Robot/NC 85 | . 25 . 20 40 Destroy Leader 196 | . 32 . 62 102 Successful Hack 18 | . 7 . 11 . Destroy Structure 9 | . . . 5 4 Lose Combat Pursuer 120 | . 30 . 15 75 Influence Decreases 1091 | . 206 28 293 564 Entered New Map 76 | . . 18 . 58 Time Decay 715 | . 186 10 233 286 Lost Part 300 | . 20 . 60 220 Squads Dispatched 9 | . 2 . 1 6 Investigation 2 | . . . 1 1 Extermination . | . . . . . Reinforcement 7 | . 2 . . 5 Assault . | . . . . . Garrison . | . . . . . Intercept . | . . . . . Searches Triggered . | . . . . . Construction Impeded 2 | . . . . 2 Haulers Reinforced . | . . . . . Active Scanning Responses . | . . . . . Cargo Convoy Interrupts . | . . . . . Stealth | -11 -10 -10 -9 -8 --------- Run | Yrd Mat Min Mat Mat Distress Signals 6 | . 1 . 2 3 Communications Jammed . | . . . . . Distress Signals . | . . . . . Times Spotted 59 | . 11 . 18 30 Peak Tracking Total 5 | . 4 . 4 5 Tactical Retreats 4 | . 1 . 1 2 Traps | -11 -10 -10 -9 -8 ------- Run | Yrd Mat Min Mat Mat Traps Triggered 2 | . . . 1 1 Indirectly . | . . . . . Trap Hack Attempts . | . . . . . Triggered . | . . . . . Disarmed . | . . . . . Reprogrammed . | . . . . . Reused . | . . . . . Traps Extracted . | . . . . . Installed . | . . . . . Triggered . | . . . . . Machines | -11 -10 -10 -9 -8 ---------- Run | Yrd Mat Min Mat Mat Machines Disabled . | . . . . . Max in Single Turn . | . . . . . Machines Repaired . | . . . . . Machines Dismantled . | . . . . . Machines Sabotaged . | . . . . . Overloaded Fab Kills . | . . . . . Hacking | -11 -10 -10 -9 -8 --------- Run | Yrd Mat Min Mat Mat Machines Accessed 5 | . 1 . 4 . Terminals 5 | . 1 . 4 . Fabricators . | . . . . . Repair Stations . | . . . . . Recycling Units . | . . . . . Scanalyzers . | . . . . . Garrison Access . | . . . . . Total Hacks 10 | . 2 . 8 . Successful 7 | . 1 . 6 . Failed 3 | . 1 . 2 . Catastrophic 1 | . 1 . . . Database Lockouts . | . . . . . Manual 1 | . . . 1 . Terminals 10 | . 2 . 8 . Fabricators . | . . . . . Repair Stations . | . . . . . Recycling Units . | . . . . . Scanalyzers . | . . . . . Garrison Access . | . . . . . Terminal Hacks 7 | . 1 . 6 . Record 2 | . . . 2 . Prototype ID Bank 2 | . . . 2 . Investigation Status 1 | . . . 1 . Registered Components 2 | . 1 . 1 . Fabricator Hacks . | . . . . . Repair Station Hacks . | . . . . . Recycling Unit Hacks . | . . . . . Scanalyzer . | . . . . . Garrison Access Hacks . | . . . . . Unauthorized Hacks . | . . . . . Terminals . | . . . . . Fabricators . | . . . . . Repair Stations . | . . . . . Recycling Units . | . . . . . Scanalyzers . | . . . . . Garrison Access . | . . . . . Data Cores Recovered . | . . . . . Used . | . . . . . Hacking Detections 5 | . 1 . 4 . Full Trace Events . | . . . . . Feedback Events . | . . . . . Feedback Blocked . | . . . . . Robot Schematics Acquired . | . . . . . Robots Built . | . . . . . Authchips . | . . . . . Time . | . . . . . Total Robot Build Rating . | . . . . . Part Schematics Acquired . | . . . . . Parts Built . | . . . . . Authchips . | . . . . . Time . | . . . . . Total Part Build Rating . | . . . . . Parts Repaired . | . . . . . Time . | . . . . . Parts Recycled . | . . . . . Recycled Matter . | . . . . . Retrieved Matter . | . . . . . Retrieved Components . | . . . . . Parts Scanalyzed . | . . . . . Part Schematics Acquired . | . . . . . Parts Damaged . | . . . . . Bothacking | -11 -10 -10 -9 -8 ------------ Run | Yrd Mat Min Mat Mat Used RIF Installer . | . . . . . Robots Hacked . | . . . . . Non-combat . | . . . . . Combat . | . . . . . Robot Hacks Applied . | . . . . . Relay Couplers Released . | . . . . . Fabnet Peak Effective % . | . . . . . Robots Rewired . | . . . . . Allies Hacked . | . . . . . Hacks Repelled . | . . . . . Allies | -11 -10 -10 -9 -8 -------- Run | Yrd Mat Min Mat Mat Total Allies . | . . . . . Largest Group . | . . . . . Highest-Rated Group . | . . . . . Highest-Rated Ally . | . . . . . Total Orders . | . . . . . Ally Attacks . | . . . . . Total Damage . | . . . . . Kills . | . . . . . Allies Corrupted . | . . . . . Allies Melted . | . . . . . Intel | -11 -10 -10 -9 -8 ------- Run | Yrd Mat Min Mat Mat Active Infowar (turns) . | . . . . . Robot Analysis Total . | . . . . . Derelict Logs Recovered 1 | . . 1 . . Drone Launches . | . . . . . Drone Recoveries . | . . . . . Exploration | -11 -10 -10 -9 -8 ------------- Run | Yrd Mat Min Mat Mat Turns Passed 1756 | 86 431 30 576 633 Spaces Moved 914 | 65 237 26 315 271 Core 5 | 4 . . . 1 Treads . | . . . . . Legs 909 | 61 237 26 315 270 Wheels . | . . . . . Hover . | . . . . . Flight . | . . . . . Fastest Speed 50 | 50 120 120 120 120 Average Speed 127 | 115 120 120 126 137 Slowest Speed 260 | 120 120 120 260 250 Overloaded Moves . | . . . . . Propulsion Burnouts . | . . . . . Robots Hopped . | . . . . . Potential Cave-ins . | . . . . . Cave-ins Triggered . | . . . . . Exploration Rate (%) 18 | 4 34 9 25 21 Regions Visited 4 Branch Regions 1 Pre-discovered Areas 1 | . . 1 . . Known Exits Taken . | . . . . . Unknown Exits Taken 4 | 1 1 1 1 . Scrap Searched . | . . . . . Spaces Dug . | . . . . . Terrain Destroyed 10 | . . . 7 3 Melee . | . . . . . Projectile . | . . . . . AOE 10 | . . . 7 3 Terrain Rammed . | . . . . . Walls Destroyed . | . . . . . Machines Disabled . | . . . . . Actions | -11 -10 -10 -9 -8 --------- Run | Yrd Mat Min Mat Mat Total 1209 | 72 294 25 418 400 Wait 32 | . . . 11 21 Move 910 | 64 236 25 314 271 Hop . | . . . . . Pick Up 15 | . 4 . 9 2 Fast Attach 19 | 6 3 . 2 8 Attach 16 | . . . 6 10 Detach . | . . . . . Swap 20 | 2 3 . 10 5 Drop 7 | . . . 7 . Fire 141 | . 48 . 58 35 Melee 41 | . . . . 41 Ram . | . . . . . Kick 8 | . . . 1 7 Crush . | . . . . . Escape Stasis . | . . . . . Rewire . | . . . . . Trap . | . . . . . Miscellaneous . | . . . . . Route ------- -11/Scrapyard -10/Materials -10/Mines -9/Materials -8/Materials History --------- Turn | Location | Event 41 | -11/Scrapyard | Discovered new exit (range 14) 87 | -11/Scrapyard | Entered Materials 307 | -10/Materials | Build established: Mutant 477 | -10/Materials | Discovered new exit (range 15) 518 | -10/Materials | Entered Mines 523 | -10/Mines | Discovered new exit (range 14) 541 | -10/Mines | Met a Derelict bent on vengeance 542 | -10/Mines | Learned location of Zion (-7) 548 | -10/Mines | Entered Materials 548 | -9/Materials | Evolved 2 slots: Propulsion x1, Utility x1 884 | -9/Materials | Lost 3 parts (2n1u) 1100 | -9/Materials | Discovered new exit (range 16) 1124 | -9/Materials | Entered another Materials area 1124 | -8/Materials | Evolved 2 slots: Power x1, Utility x1 1262 | -8/Materials | Lost 3 parts (1p2u) 1307 | -8/Materials | Lost 3 parts (1p2w) 1471 | -8/Materials | Lost 8 parts (2p4n2w) 1641 | -8/Materials | Lost 3 parts (1p1n1w) 1682 | -8/Materials | Core integrity fell below 50% 1720 | -8/Materials | Core integrity fell below 20% 1755 | -8/Materials | Lost 5 parts (2p2n1w) 1757 | -8/Materials | Destroyed by G-47 Trooper with Particle Gun Last Messages --------------- 01710_ G-47 Trooper destroyed. 01710_ Hadron Collector disabled. 01711_ A|0J2EBFYT2 KYEVX&8#GGNA% 01712_ Acquired 6 matter. 01714_ Carbon-fiber Leg destroyed. 01715_ M-13 Machinist repairs H-61 Shepherd Dynamic Insulation System. 01716_ G-47 Trooper destroyed. 01717_ Knocked back. 01719_ Penetrated by Slug. 01721_ Acquired Aluminum Leg. 01724_ Hvy. Mace destroyed. 01725_ Acquired Aluminum Leg. 01727_ R-06 Scavenger collects Imp. Heat Sink. 01740_ Kicked G-47 Trooper out of the way. 01749_ Kicked G-47 Trooper. 01753_ System corrupted: Adv. Beam Rifle rejected. 01753_ Kicked G-47 Trooper. 01754_ Kicked G-47 Trooper out of the way. 01755_ Kicked G-47 Trooper. 01757_ M-13 Machinist repairs G-47 Trooper. Map ----- +----------------------------------------------------+ | ?????????????????????????? ???????????????????? | | ?????????????????????????? #??????????????????? | | ####?????????????????????# #??????????????????? | | #?????????????????????# #??????????????????? | | #?????????????????????# #??????????????????? | | #?????????????????????# #??????????????????? | | #?????????????????????# #???????????##?????? | | #?????????????????????# ############ ##????? | | #?????????????????????# ##[ #????? | | ###########???????????# ## % """"" " #????? | | ## """ #???????????# ## ! """"" T #????? | | ## "T" ########????# ## ! """"" " #????? | | ! ## = # #???##^ ## #????? | | % ## # ##### ##+#####+#####????? | | % ## + #?# ########## | | % ## """ # % #?# ## # | | ## """ # ##### ### #?# ## "" # | | ## """ # #???######?#% #?# ## " # | | ## ## #######;##### ### ## " # | | ############ # % %# [#% % # | | #??????????# # % # =%+% " # | | #??????????# + """ % "" r;%##+###%""" # | | ########???# # """" """" ## # ## "" # | | # #???# + """" "" Hm## # ## # | | %# % #???# # g%[ g ## # ## !# | | %# #???# # """"@ " ## # ## # | | # [%##### # """" """" ## # ########## | | + *%+% # """" """" ## # #????????? | | # %!%#% # ## # #????????? | | ######## ############## #####????????? | | % ???? #????????????# ????????????? | | #/##???######## #????????????# ????????????? | | ????????????# #????????????? ????????????? | | ""????????????# #????????????? ????????????? | | ??????????????# #????????????? ????????????? | | ??????????????# #????????????? ????????????? | | ??????????????# #????????????? ????????????? | | ??????????????# #????????????? ????????????? | | ??????????????# #????????????? ????????????? | | ??????????????+ #???????????????????????????? | | ??????????????? ##+#???????????????????????????? | | ??????????????? ???????????????????????????????? | | ??????????????? ???????????????????????????????? | | ???????????????????????????????????????????????? | | ???????????????????????????????????????????????? | | ???????????????????????????????????????????????? | | ???????????????????????????????????????????????? | | ???????????????????????????????????????????????? | | ???????????????????????????????????????????????? | | ???????????????????????????????????????????????? | +----------------------------------------------------+ Best States ------------- Heat Dissipation 31 Energy Generation 25 Energy Capacity 350 Matter Stores 300 Matter Capacity 300 Sight Range 16 Terrain Scan Density 10 Armor Coverage 150 Propulsion Shielding 33 Evasion (%) 55 Targeting Accuracy 5 Offensive Hacking 10 Item Schematics ----------------- None Robot Schematics ------------------ None Fabricated ------------ Nothing Repaired ---------- Nothing Alien Tech Used ----------------- None Achievements -------------- None Challenges ------------ None Game ------ Seed SigixAlertShearcannon Manual? 0 Play Time 00:30:39 Cumulative 7.6 hours Start 2025.09.25 @ 02:41:49 End 2025.09.25 @ 03:09:30 Sessions 1 Manual Loads 0 Difficulty Rogue Special Mode None Game No. 14 Rogue 14 Adventurer 0 Explorer 0 Win Type - Total 0 Types 0/0/0/0/0/0/0/0/0/0 Lore% 3 Gallery% 12 Achievement% 10 Wizard Run 0 Options --------- Layout 0 ASCII 0 Keyboard 1 Movement Arrows Keybinds 0 Fullscreen 1 Font 24/Smallcaps Map View 76x50 Zoom Use 0% Tactical HUD 1 Map Filters NONE Filters NONE Steam 1 RUN: a1693a2c-b408-4e53-a5b4-ffc1d1b2214e